Cogmind - Beta 10 @@@ ROGUE MODE // 2020.09.21 @ 03:09:20 Player: DragoX Result: Destroyed by S-10 Pest with Light Assault Rifle Performance ------------- Evolutions (0) 0 Regions Visited (4) 800 Robots Destroyed (48) 240 Value Destroyed (934) 934 Prototype IDs (24) 480 Alien Tech Used (0) 0 Bonus (109) 109 TOTAL SCORE: 2563 Bonus ------- Aligned with FarCom 300 Friendly Fire -191 Cogmind --------- Core Integrity 0/250 Matter 300/300 Energy 140/140 System Corruption 0% Temperature Cool (0) Movement Treading (180) Ox1 Location -9/Mines Parts ------- > --- POWER (1) -------- Light Deuterium Engine > --- PROPULSION (2) --- Medium Treads Combat Airjet > --- UTILITY (2) ------ Large Storage Unit Improved Medium Armor Plating > --- WEAPON (2) ------- AWS/Gauss > --- INVENTORY (10) --- Transport Network Coupler Launcher Guidance Computer Hacking Suite Improved Trap Extractor Improved Field Recycling Unit (0) Thief Drone Bay (3/3) Heavy Ion Cannon Remote Datajack Peak State ------------ > --- POWER ------------ Light Deuterium Engine > --- PROPULSION ------- Medium Treads Combat Airjet > --- UTILITY ---------- Large Storage Unit Improved Medium Armor Plating > --- WEAPON ----------- AWS/Gauss > --- INVENTORY -------- Transport Network Coupler Launcher Guidance Computer Hacking Suite Improved Trap Extractor Improved Field Recycling Unit Thief Drone Bay Heavy Ion Cannon Remote Datajack [Rating: 36] Favorites ----------- Power Light Deuterium Engine Engine Light Deuterium Engine Propulsion Light Treads Treads Light Treads Wheel Wheel Hover Unit Combat Airjet Utility Large Storage Unit Device Tractor Beam Storage Large Storage Unit Protection Improved Medium Armor Plating Weapon Light Cannon Energy Gun Beamcaster Energy Cannon Beam Cannon Ballistic Gun AWS/Gauss Ballistic Cannon Light Cannon Launcher Rocket Launcher Special Weapon Mining Laser Build | -11 -10 -10 -10 -9 ------- Run | Scr Mat Min Exi Min Slots Evolved . | . . . . . Power . | . . . . . Propulsion . | . . . . . Utility . | . . . . . Weapon . | . . . . . Parts Attached 47 | 8 17 12 1 9 Power 5 | 1 3 1 . . Engine 5 | 1 3 1 . . Core . | . . . . . Reactor . | . . . . . Propulsion 11 | 4 2 3 . 2 Treads 6 | 2 2 1 . 1 Leg . | . . . . . Wheel 4 | 2 . 2 . . Hover 1 | . . . . 1 Flight . | . . . . . Utility 7 | 1 3 . . 3 Device 2 | . 1 . . 1 Storage 3 | 1 2 . . . Processor . | . . . . . Hackware . | . . . . . Protection 2 | . . . . 2 Artifact . | . . . . . Weapon 24 | 2 9 8 1 4 Energy Gun 5 | . 2 3 . . Energy Cannon 1 | . . 1 . . Ballistic Gun 9 | 2 5 . 1 1 Ballistic Cannon 3 | . . 2 . 1 Launcher 2 | . . 2 . . Special Weapon 4 | . 2 . . 2 Impact Weapon . | . . . . . Slashing Weapon . | . . . . . Piercing Weapon . | . . . . . Special Melee Weapon . | . . . . . Unidentified Prototypes 1 | . . . . 1 Parts Lost 9 | . 3 6 . . Power 3 | . 2 1 . . Propulsion 3 | . . 3 . . Utility 1 | . 1 . . . Weapon 2 | . . 2 . . Highest Loss Streak 6 | . 2 6 . . Average Slot Usage (%) 95 | . 94 99 96 92 Engine 13 | . 12 13 14 14 Treads 17 | . 20 19 14 14 Wheel 6 | . 7 8 14 2 Hover 3 | . . . . 11 Device 1 | . 3 . . 1 Storage 22 | . 21 28 28 15 Protection 3 | . . . . 10 Energy Gun 5 | . 5 9 10 . Ballistic Gun 5 | . 16 . 3 5 Ballistic Cannon 7 | . . 10 10 6 Launcher 2 | . . 7 . . Special Weapon 3 | . 4 . . 7 Naked Turns . | . . . . . Heaviest Build 47 | 9 41 45 47 47 Greatest Support 40 | 20 40 40 20 28 Greatest Overweight (x) 3 | . 1 3 2 2 Average Overweight (x) 1 | . . 1 2 1 Largest Inventory Capacity 16 | 6 16 16 16 16 Average Capacity 13 | 5 11 16 16 10 Most Carried 16 | 5 16 16 16 13 Average Carried 11 | 2 8 14 15 9 Final Capacity 16 | 6 16 16 16 10 Final Carried 15 | 3 14 15 12 8 Class Distribution -------------------- 100% | Mutant Dominant Class ---------------- Mutant | -10/Materials Mutant | -10/Mines Mutant | -10/Exiles Mutant | -9/Mines Resources | -11 -10 -10 -10 -9 ----------- Run | Scr Mat Min Exi Min Matter Collected 1011 | 281 338 276 . 116 Remotely 66 | . 66 . . . Salvage Created 1377 | 92 622 185 . 478 Parts 76 | 3 43 13 . 17 Haulers Intercepted 1 | . 1 . . . Recyclers Shooed 1 | . 1 . . . Parts Field Recycled . | . . . . . Retrieved Matter . | . . . . . Parts Self-Destructed . | . . . . . Prevented . | . . . . . Kills | -11 -10 -10 -10 -9 ------- Run | Scr Mat Min Exi Min Combat Hostiles Destroyed 40 | . 16 15 . 9 Guns 23 | . 15 . . 8 Cannons 4 | . . 3 . 1 AOE 13 | . 1 12 . . Classes Destroyed 12 | 1 5 4 . 2 Worker 1 | . . 1 . . Builder 2 | . 1 1 . . Hauler 1 | . 1 . . . Recycler 1 | 1 . . . . Carrier 1 | . . . . 1 Operator 1 | . 1 . . . Swarmer 6 | . 6 . . . Grunt 18 | . 10 1 . 7 Brawler 1 | . . . . 1 Sentry 2 | . . 2 . . Demolisher 1 | . . 1 . . Assembled 13 | . . 11 . 2 Best Kill Streak 12 | 1 3 12 . 3 Combat Bots Only 11 | . 3 11 . 3 Max Kills in Single Turn 5 | 1 1 5 . 1 Gunslinging . | . . . . . Exploded 5 | . 1 5 . . Melee . | . . . . . Uniques/NPCs Destroyed . | . . . . . Combat | -11 -10 -10 -10 -9 -------- Run | Scr Mat Min Exi Min Damage Taken 1217 | . 610 482 . 125 Core 255 | . 125 88 . 42 Absorbed by Shields . | . . . . . Core Remaining (%) 100 | 100 . . . . Volleys Fired 107 | 5 60 17 . 25 Largest 2 | 2 2 2 . 1 Hottest 140 | 40 140 110 . 100 Shots Fired 191 | 10 93 25 . 63 Gun 133 | 10 84 1 . 38 Cannon 14 | . . 9 . 5 Launcher 15 | . . 15 . . Special 29 | . 9 . . 20 Kinetic 123 | 10 65 5 . 43 Thermal 34 | . 9 5 . 20 Explosive 15 | . . 15 . . Electromagnetic 19 | . 19 . . . Robot Hit Streak 11 | 3 10 5 . 11 Robot Miss Streak 2 | 1 2 2 . 1 Penetration Max . | . . . . . Secondary Targets 1 | . 1 . . . Max Gunslinging Chain 1 | . 1 . . . Autonomous 38 | . . . . 38 Shots Hit Robots 121 | 7 60 17 . 37 Core Hits 78 | 2 28 35 . 13 Critical Hits 3 | . . 1 . 2 Critical Kills 1 | . . . . 1 Critical Parts Destroyed 2 | . . 1 . 1 Melee Attacks . | . . . . . Impact . | . . . . . Slashing . | . . . . . Piercing . | . . . . . Sneak Attacks . | . . . . . Combat Hostiles . | . . . . . Follow-up Attacks . | . . . . . Damage Inflicted 3039 | 57 824 1114 . 1044 Guns 1772 | 57 742 21 . 952 Cannons 206 | . . 138 . 68 Explosions 1034 | . 79 955 . . Melee . | . . . . . Ramming 27 | . 3 . . 24 Kinetic 1682 | 57 538 67 . 1020 Thermal 171 | . 79 92 . . Explosive 955 | . . 955 . . Electromagnetic 204 | . 204 . . . Impact . | . . . . . Slashing . | . . . . . Piercing . | . . . . . Highest Corruption . | . . . . . Average Corruption . | . . . . . Corruption Purged . | . . . . . Overload Shots . | . . . . . Overflow Damage 9 | . 9 . . . Projectiles . | . . . . . Explosions 9 | . 9 . . . Melee . | . . . . . Knockbacks 2 | . . . . 2 Impact . | . . . . . Kinetic 2 | . . . . 2 Secondary . | . . . . . Self-Inflicted Damage 41 | . 30 . . 11 Shots 1 | . 1 . . . Rammed 5 | . 1 . . 4 Targets Rammed 5 | . 1 . . 4 Kicked . | . . . . . Crushed . | . . . . . Highest Temperature 144 | . 144 75 . 144 Average Temperature 34 | . 30 27 . 40 Received Heat Transfer 260 | . 192 18 . 50 Siege Activations . | . . . . . Robots Corrupted . | . . . . . Combat Hostiles . | . . . . . Parts Fried . | . . . . . Impact Corruptions . | . . . . . Robots Melted . | . . . . . Combat Hostiles . | . . . . . Parts Melted . | . . . . . Heat Transferred 235 | . 50 185 . . Parts Sabotaged . | . . . . . Parts Stolen . | . . . . . Parts Stripped . | . . . . . Power Chain Reactions 1 | . 1 . . . Missiles Intercepted . | . . . . . Alert | -11 -10 -10 -10 -9 ------- Run | Scr Mat Min Exi Min Peak Influence 231 | 5 231 84 . 120 Initial 61 | . 3 61 . . Average 44 | . 117 24 . 18 Maximum Alert Level 1 | . 1 . . . Low Security (%) 96 | 100 85 100 . 100 Level 1 3 | . 14 . . . Level 2 . | . . . . . Level 3 . | . . . . . Level 4 . | . . . . . Level 5 . | . . . . . High Security . | . . . . . Max Security . | . . . . . Squads Dispatched 6 | . 6 . . . Investigation 5 | . 5 . . . Extermination . | . . . . . Reinforcement 1 | . 1 . . . Assault . | . . . . . Garrison . | . . . . . Intercept . | . . . . . Construction Impeded . | . . . . . Haulers Reinforced . | . . . . . Stealth | -11 -10 -10 -10 -9 --------- Run | Scr Mat Min Exi Min Distress Signals 1 | . 1 . . . Communications Jammed . | . . . . . Distress Signals . | . . . . . Times Spotted 64 | . 28 24 . 12 Peak Tracking Total 15 | . 3 15 . 3 Tactical Retreats 4 | . 1 1 . 2 Traps | -11 -10 -10 -10 -9 ------- Run | Scr Mat Min Exi Min Traps Triggered 4 | . 4 . . . Indirectly . | . . . . . Trap Hack Attempts . | . . . . . Triggered . | . . . . . Disarmed . | . . . . . Reprogrammed . | . . . . . Reused . | . . . . . Traps Extracted . | . . . . . Installed . | . . . . . Triggered . | . . . . . Machines | -11 -10 -10 -10 -9 ---------- Run | Scr Mat Min Exi Min Machines Disabled 2 | . 1 1 . . Max in Single Turn 1 | . 1 1 . . Machines Sabotaged . | . . . . . Garrisons Compromised . | . . . . . Overloaded Fab Kills . | . . . . . Fab Network Shutdowns . | . . . . . Hacking | -11 -10 -10 -10 -9 --------- Run | Scr Mat Min Exi Min Machines Accessed 15 | . 8 . 5 2 Terminals 6 | . 6 . . . Fabricators . | . . . . . Repair Stations . | . . . . . Recycling Units 2 | . 2 . . . Scanalyzers . | . . . . . Garrison Access . | . . . . . Total Hacks 78 | . 26 . 50 2 Successful 67 | . 15 . 50 2 Failed 11 | . 11 . . . Catastrophic 1 | . 1 . . . Database Lockouts . | . . . . . Manual 27 | . 26 . 1 . Terminals 19 | . 19 . . . Fabricators . | . . . . . Repair Stations . | . . . . . Recycling Units 7 | . 7 . . . Scanalyzers . | . . . . . Garrison Access . | . . . . . Terminal Hacks 53 | . 1 . 50 2 Record 49 | . . . 49 . Open Door 2 | . . . . 2 Recall Investigation 1 | . 1 . . . EX-Prototype ID Bank 1 | . . . 1 . Fabricator Hacks . | . . . . . Repair Station Hacks . | . . . . . Recycling Unit Hacks . | . . . . . Scanalyzer . | . . . . . Garrison Access Hacks . | . . . . . Unauthorized Hacks 14 | . 14 . . . Terminals 8 | . 8 . . . Track 2 | . 2 . . . Assimilate 2 | . 2 . . . Botnet 1 | . 1 . . . Detonate 1 | . 1 . . . Disrupt 1 | . 1 . . . Operators 1 | . 1 . . . Fabricators . | . . . . . Repair Stations . | . . . . . Recycling Units 6 | . 6 . . . Monitor 1 | . 1 . . . Reject 2 | . 2 . . . Recyclers 1 | . 1 . . . Mask 2 | . 2 . . . Scanalyzers . | . . . . . Garrison Access . | . . . . . Data Cores Recovered . | . . . . . Used . | . . . . . Hacking Detections 8 | . 8 . . . Full Trace Events 2 | . 2 . . . Feedback Events . | . . . . . Feedback Blocked . | . . . . . Robot Schematics Acquired . | . . . . . Robots Built . | . . . . . Matter . | . . . . . Time . | . . . . . Total Robot Build Rating . | . . . . . Part Schematics Acquired . | . . . . . Parts Built . | . . . . . Matter . | . . . . . Time . | . . . . . Total Part Build Rating . | . . . . . Parts Repaired . | . . . . . Time . | . . . . . Parts Recycled . | . . . . . Recycled Matter . | . . . . . Retrieved Matter . | . . . . . Retrieved Components . | . . . . . Parts Scanalyzed . | . . . . . Part Schematics Acquired . | . . . . . Parts Damaged . | . . . . . Bothacking | -11 -10 -10 -10 -9 ------------ Run | Scr Mat Min Exi Min Used RIF Installer . | . . . . . Robots Hacked . | . . . . . Non-combat . | . . . . . Combat . | . . . . . Robot Hacks Applied . | . . . . . Relay Couplers Released . | . . . . . Robots Rewired . | . . . . . Allies Hacked . | . . . . . Hacks Repelled . | . . . . . Allies | -11 -10 -10 -10 -9 -------- Run | Scr Mat Min Exi Min Total Allies 5 | . . 2 . 3 Largest Group 3 | . . 2 . 3 Highest-Rated Group 42 | . . 42 . 40 Highest-Rated Ally 31 | . . 31 . 16 Total Orders 4 | . . . . 4 GUARD 2 | . . . . 2 AID 2 | . . . . 2 Ally Attacks 20 | . . 7 . 13 Total Damage 248 | . . 106 . 142 Kills . | . . . . . Allies Corrupted . | . . . . . Allies Melted . | . . . . . Turrets Deployed 1 | . . . 1 . Intel | -11 -10 -10 -10 -9 ------- Run | Scr Mat Min Exi Min Robot Analysis Total . | . . . . . Derelict Logs Recovered 5 | . . 2 . 3 Drone Launches . | . . . . . Drone Recoveries . | . . . . . Exploration | -11 -10 -10 -10 -9 ------------- Run | Scr Mat Min Exi Min Turns Passed 5594 | 85 1127 1681 921 1780 Spaces Moved 2790 | 63 658 763 458 848 Core 8 | 8 . . . . Treads 1926 | 8 386 757 458 317 Legs . | . . . . . Wheels 325 | 47 272 6 . . Hover 531 | . . . . 531 Flight . | . . . . . Fastest Speed 50 | 50 80 110 200 170 Average Speed 171 | 86 131 191 200 176 Slowest Speed 200 | 160 180 200 200 200 Overloaded Moves . | . . . . . Propulsion Burnouts . | . . . . . Robots Hopped 2 | . . . 2 . Cave-ins Triggered . | . . . . . Exploration Rate (%) 74 | 3 97 99 74 98 Regions Visited 4 Branch Regions 3 Pre-discovered Areas 3 | . . 2 1 . Known Exits Taken . | . . . . . Unknown Exits Taken 4 | 1 1 1 1 . Scrap Searched 3 | . . 1 . 2 Spaces Dug 9 | . 6 . . 3 Terrain Destroyed 175 | . 13 135 . 27 Melee . | . . . . . Projectile 35 | . 8 . . 27 AOE 140 | . 5 135 . . Terrain Rammed . | . . . . . Walls Destroyed . | . . . . . Machines Disabled . | . . . . . Actions | -11 -10 -10 -10 -9 --------- Run | Scr Mat Min Exi Min Total 3400 | 84 820 958 466 1072 Wait 362 | . 54 155 . 153 Move 2782 | 62 657 762 453 848 Hop 2 | . . . 2 . Pick Up 57 | 9 22 9 2 15 Fast Attach 3 | . 1 1 . 1 Attach 29 | 6 9 7 1 6 Detach 5 | . 2 . 2 1 Swap 15 | 2 7 4 . 2 Drop 33 | . 7 3 6 17 Fire 107 | 5 60 17 . 25 Melee . | . . . . . Ram 4 | . . . . 4 Kick . | . . . . . Crush 1 | . 1 . . . Escape Stasis . | . . . . . Rewire . | . . . . . Trap . | . . . . . Miscellaneous . | . . . . . Route ------- -11/Scrapyard -10/Materials (discovered 5 exits: [*Mat x3] / [*Min x2]) -10/Mines (discovered 3 exits: [*Mat x2] / *Exi) -10/Exiles (discovered 2 exits: *Min x2) -9/Mines (discovered 2 exits: [*Mat x2]) History --------- Turn | Location | Event 18 | -11/Scrapyard | Discovered new exit (range 16) 86 | -11/Scrapyard | Entered Materials 172 | -10/Materials | Discovered new exit (range 7) 185 | -10/Materials | Discovered new exit (range 10) 243 | -10/Materials | Discovered new exit (range 15) 314 | -10/Materials | Build established: Mutant 757 | -10/Materials | Discovered new exit (range 5) 780 | -10/Materials | Discovered new exit (range 16) 1213 | -10/Materials | Entered Mines 1233 | -10/Mines | A weapon hastily lodged in a ceiling crevice suddenly fell to the ground 1328 | -10/Mines | Learned location of Zion (-7) 1334 | -10/Mines | Core integrity fell below 50% 1339 | -10/Mines | Joined a pair of Derelicts in attacking an 0b10 outpost 1451 | -10/Mines | Received a Rocket Launcher from a helpful Derelict 1796 | -10/Mines | Discovered new exit (range 9) 1799 | -10/Mines | Learned location of Storage (-7) 1896 | -10/Mines | Assembled infested the area 1920 | -10/Mines | Met 8R-AWN 1930 | -10/Mines | Destroyed 11 combat bots 1936 | -10/Mines | Core integrity fell below 20% 1965 | -10/Mines | Lost 6 parts (1p3n2w) 2123 | -10/Mines | Learned Materials terminal intel 2487 | -10/Mines | Discovered new exit (range 5) 2643 | -10/Mines | Discovered new exit (range 9) 2894 | -10/Mines | Entered Exiles 2947 | -10/Exiles | Discovered new exit (range 15) 2985 | -10/Exiles | Welcomed by 8R-AWN 3017 | -10/Exiles | Met EX-HEX 3075 | -10/Exiles | Met EX-BIN 3171 | -10/Exiles | Met EX-DEC 3483 | -10/Exiles | Aligned with FarCom system 3485 | -10/Exiles | Given EX-Vault access code 3565 | -10/Exiles | Opened EX-Vault 3582 | -10/Exiles | DAS Turret deployed 3609 | -10/Exiles | Found AWS/Gauss 3649 | -10/Exiles | Warned to stay clear of 0b10 Research branches 3793 | -10/Exiles | Discovered new exit (range 14) 3815 | -10/Exiles | Left Exiles lab with AWS/Gauss 3815 | -10/Exiles | Entered Mines 3819 | -9/Mines | Assisted by bots powering up and referring to "LRC-V3" 3825 | -9/Mines | Met a Derelict bent on vengeance 3955 | -9/Mines | Discovered new exit (range 5) 3969 | -9/Mines | Learned 4 Materials zone layouts 4056 | -9/Mines | Found the Drone Emporium 4067 | -9/Mines | Found Prototype Device 4077 | -9/Mines | Identified Thief Drone Bay 4149 | -9/Mines | Excavation squad dispatched 4149 | -9/Mines | A large section of the Mines collapsed 4244 | -9/Mines | Learned 4 Materials zone layouts 4503 | -9/Mines | Discovered new exit (range 6) 4556 | -9/Mines | Learned location of 1 exit from Lower Caves 4626 | -9/Mines | Met a Derelict who couldn't figure out how to use a Trap Extractor 5595 | -9/Mines | Destroyed by S-10 Pest with Light Assault Rifle Last Messages --------------- 05305_ Destroyed Particle Gun. 05306_ Slug penetrates G-34 Mercenary. 05306_ Slug penetrates G-47 Trooper. 05307_ Slug penetrates G-34 Mercenary. 05308_ Slug penetrates G-47 Trooper. 05308_ G-47 Trooper destroyed. 05315_ Slug penetrates G-34 Mercenary. 05316_ Destroyed Sml. Laser. 05316_ U-05 Engineer builds a Wall. 05317_ G-34 Mercenary destroyed. 05329_ U-05 Engineer builds a Wall. 05593_ C-30 ARC suffers critical hit. 05593_ C-30 ARC bursts open for emergency deployment. 05593_ S-10 Pest unfolds itself. 05593_ S-10 Pest destroyed. 05593_ S-10 Pest unfolds itself. 05593_ C-30 ARC destroyed. [Achievement: Preemptive Strike] 05594_ Slug penetrates S-10 Pest. 05594_ T-07 Excavator destroyed. Map ----- +----------------------------------------------------+ | """ #??# #???????# #####??????# ## #?? | | """ ####=#???????# #??##### ######### #### #?? | | % [=%%!#???????##### #??# #?????### #??# #?? | | #### #???????????# #??# ####?????# #??# #?? | | ## ##??# #???????????# #??# #????????# ###?## ### | | ?# #???# #???????????# #??# #######??# #??## | | ## #???# #???????????# #### #??# #?## | | #???# #???????????# ## ## #??# ### # | | ####???# #???????????###### ## ## #### ## | | ???????# #?????????????#### ## ## ##? | | ???????# #????????????## ## ###### """ ##?? | | ???????#=#?????????#### ## #????# """ #??? | | ???????#=#????????## ## #????## """ ##??? | | ???????#%#????????# ### #?????# ##???? | | ???????#]##?????### ### #????? ##????? | | ???????#%######## # #????# ##?????? | | ###????#%==! "% #### #####????# ##??????? | | #????######## ##?## ##????????### #???????? | | # #????#*=#???# #???## #???????????# #??####?? | | # #????######## #????#% u #????####???# #?## ##? | | # #????## # #???## #???## ##??# ### #? | | # ####### # ##### ##?## #??# ## | | # < % r= ### ##?# ## | | ######### %* ### ## | | ????????# ## #### =s## ## ## | | ????????# ## #??# @ ==s=[%"# ## | | ????????######## #??########;## !####### ### | | ########???????# #????????????## #?????#####?# | | #???????# #????????????## ##??????????## | | ###### #????#### #????????????# ##??????????##* | | #????# #????# %#????????????# ##???????????# % | | #????# #????# ##*######???????# ##???????###### | | ###??# ###### ## #???????# ##??????##""## | | #??# % ####### #???????# #??????#" =#X # | | # #??########%#?????# #######?#####??????#" [ # | | # ##???????## ##????# #????????????#"! [ # | | # #??????## %###??####### #????????????#" # | | ### #??????#=% ##???????# #####????????##""## | | ??# #?????##! ##??????# " #?????????##### | | ??# #????## #??????##### #?????????????# | | ??# #???## #??????????# #?????????????# | | ??# #??## #??????????# ##???????????## | | ??# ##?# #?????????## ##??######### | | ?## ### #### ##?????????# "#??# | | ?# ### #???###??????????# "#??# ######## | | ## #?### #????????????????# ##?# #??????## | | # #????# #????????????????# #### #???????# | | ###### #????????????????## ####???## | | |%[! #?????????????????## ###### ##?## | | #########??????????????????# ###### ### | +----------------------------------------------------+ Best States ------------- Heat Dissipation 25 Energy Generation 14 Energy Capacity 140 Matter Stores 300 Matter Capacity 300 Sight Range 16 Terrain Scan Density 10 Armor Coverage 225 Core Shielding 20 Evasion (%) 44 Recoil Reduction 2 Item Schematics ----------------- None Robot Schematics ------------------ None Fabricated ------------ Nothing Alien Tech Used ----------------- None Achievements -------------- GoHome() Preemptive Strike Challenges ------------ None Game ------ Seed BladeGlidesysBuckler Manual? 0 Play Time 00:51:52 Cumulative 10.0 hours Start 2020.09.21 @ 02:16:54 End 2020.09.21 @ 03:09:20 Sessions 1 Manual Loads 0 Difficulty Rogue Special Mode None Game No. 15 Rogue 15 Adventurer 0 Explorer 0 Win Type - Total 0 Types 0/0/0/0/0/0/0/0/0 Lore% 10 Gallery% 12 Achievement% 14 Wizard Run 0 Options --------- ASCII 0 Keyboard 0 Movement Mouse Keybinds 0 Fullscreen 1 Font 18/X11 Map View 76x50 Tactical HUD 1 Map Filters NONE Filters NONE Steam 0 RUN: 9833abdc-167b-4b59-9b83-1a8be7f05785